[Event "December 12 Early 2023"]
[Site "https://www.chess.com"]
[Date "2023.12.12"]
[Round "10"]
[White "Turzo, Attila"]
[Black "Munoz Sanchez, Miguel"]
[Result "1-0"]
[Board "106"]
[TimeControl "180+1"]
[WhiteFideId "704954"]
[BlackFideId "3600734"]
[WhiteElo "2470"]
[BlackElo "2343"]
[WhiteTeam "HUN"]
[BlackTeam "ECU"]
[WhiteClock "0:00:10"]
[BlackClock "0:00:00"]

1. d4 {[%clk 0:02:57]}  Nf6 {[%clk 0:02:53]} 2. Bf4 {[%clk 0:02:57]}  g6 {[%clk 0:02:53]} 3. Nf3 {[%clk 0:02:56]}  Bg7 {[%clk 0:02:53]} 4. c3 {[%clk 0:02:56]}  O-O {[%clk 0:02:53]} 5. Nbd2 {[%clk 0:02:57]}  c5 {[%clk 0:02:51]} 6. dxc5 {[%clk 0:02:51]}  b6 {[%clk 0:02:44]} 7. cxb6 {[%clk 0:02:50]}  Qxb6 {[%clk 0:02:44]} 8. Qb3 {[%clk 0:02:47]}  Nc6 {[%clk 0:02:38]} 9. Qxb6 {[%clk 0:02:44]}  axb6 {[%clk 0:02:39]} 10. e4 {[%clk 0:02:41]}  d6 {[%clk 0:02:32]} 11. Bb5 {[%clk 0:02:38]}  Na7 {[%clk 0:02:30]} 12. Bd3 {[%clk 0:02:31]}  Be6 {[%clk 0:02:25]} 13. O-O {[%clk 0:02:28]}  Nc6 {[%clk 0:02:25]} 14. a3 {[%clk 0:02:25]}  Nh5 {[%clk 0:02:25]} 15. Be3 {[%clk 0:02:25]}  Rfb8 {[%clk 0:02:22]} 16. Nd4 {[%clk 0:02:19]}  Bd7 {[%clk 0:02:17]} 17. Nxc6 {[%clk 0:02:14]}  Bxc6 {[%clk 0:02:17]} 18. Nb3 {[%clk 0:02:10]}  e5 {[%clk 0:02:04]} 19. Rfd1 {[%clk 0:02:04]}  Nf4 {[%clk 0:02:03]} 20. f3 {[%clk 0:01:53]}  Ba4 {[%clk 0:01:59]} 21. Bc2 {[%clk 0:01:52]}  Bh6 {[%clk 0:01:45]} 22. Kf2 {[%clk 0:01:44]}  Bf8 {[%clk 0:01:25]} 23. Rd2 {[%clk 0:01:40]}  Ra7 {[%clk 0:01:11]} 24. Rad1 {[%clk 0:01:39]}  Rd7 {[%clk 0:01:11]} 25. Nc1 {[%clk 0:01:34]}  Bxc2 {[%clk 0:01:10]} 26. Rxc2 {[%clk 0:01:34]}  Ne6 {[%clk 0:01:07]} 27. Na2 {[%clk 0:01:32]}  f5 {[%clk 0:01:06]} 28. Nb4 {[%clk 0:01:29]}  Nc5 {[%clk 0:01:04]} 29. Nc6 {[%clk 0:01:15]}  Re8 {[%clk 0:00:54]} 30. b4 {[%clk 0:01:10]}  Na4 {[%clk 0:00:45]} 31. c4 {[%clk 0:01:09]}  fxe4 {[%clk 0:00:32]} 32. fxe4 {[%clk 0:01:08]}  Rf7+ {[%clk 0:00:32]} 33. Ke2 {[%clk 0:01:02]}  Be7 {[%clk 0:00:29]} 34. Rf1 {[%clk 0:01:00]}  Rxf1 {[%clk 0:00:27]} 35. Kxf1 {[%clk 0:01:01]}  Kf7 {[%clk 0:00:20]} 36. Ke2 {[%clk 0:00:55]}  Ke6 {[%clk 0:00:20]} 37. b5 {[%clk 0:00:32]}  Ra8 {[%clk 0:00:18]} 38. Kd3 {[%clk 0:00:20]}  Nc5+ {[%clk 0:00:16]} 39. Bxc5 {[%clk 0:00:19]}  dxc5 {[%clk 0:00:17]} 40. Rc3 {[%clk 0:00:17]}  Bg5 {[%clk 0:00:16]} 41. Kc2 {[%clk 0:00:16]}  Bf4 {[%clk 0:00:16]} 42. h3 {[%clk 0:00:15]}  h5 {[%clk 0:00:14]} 43. Kb3 {[%clk 0:00:14]}  g5 {[%clk 0:00:11]} 44. Rd3 {[%clk 0:00:12]}  g4 {[%clk 0:00:09]} 45. a4 {[%clk 0:00:11]}  Rf8 {[%clk 0:00:03]} 46. a5 {[%clk 0:00:10]}  bxa5 {[%clk 0:00:00]} 47. b6 {[%clk 0:00:10]} 1-0

[Event "December 12 Early 2023"]
[Site "https://www.chess.com"]
[Date "2023.12.12"]
[Round "10"]
[White "Goncalves, Davi Sulzbacher"]
[Black "Storn, Justin"]
[Result "0-1"]
[Board "107"]
[TimeControl "180+1"]
[WhiteFideId "2154510"]
[BlackFideId "30922720"]
[WhiteElo "2463"]
[BlackElo "2342"]
[WhiteTeam "BRA"]
[BlackTeam "USA"]
[WhiteClock "0:00:02"]
[BlackClock "0:00:17"]

1. e4 {[%clk 0:03:00]}  c6 {[%clk 0:02:56]} 2. d4 {[%clk 0:03:00]}  d5 {[%clk 0:02:57]} 3. e5 {[%clk 0:03:00]}  c5 {[%clk 0:02:56]} 4. c3 {[%clk 0:03:00]}  Nc6 {[%clk 0:02:53]} 5. Nf3 {[%clk 0:02:53]}  cxd4 {[%clk 0:02:53]} 6. cxd4 {[%clk 0:02:52]}  Bg4 {[%clk 0:02:54]} 7. Be2 {[%clk 0:02:51]}  e6 {[%clk 0:02:53]} 8. O-O {[%clk 0:02:51]}  Qb6 {[%clk 0:02:51]} 9. Be3 {[%clk 0:02:46]}  Nge7 {[%clk 0:02:39]} 10. Nc3 {[%clk 0:02:43]}  Nf5 {[%clk 0:02:31]} 11. Na4 {[%clk 0:02:23]}  Qc7 {[%clk 0:02:21]} 12. Rc1 {[%clk 0:02:21]}  Nxe3 {[%clk 0:02:18]} 13. fxe3 {[%clk 0:02:21]}  Be7 {[%clk 0:02:18]} 14. Qe1 {[%clk 0:02:06]}  O-O {[%clk 0:02:12]} 15. Qg3 {[%clk 0:02:05]}  Bf5 {[%clk 0:02:11]} 16. Nc3 {[%clk 0:01:59]}  f6 {[%clk 0:01:43]} 17. Nh4 {[%clk 0:01:48]}  fxe5 {[%clk 0:01:41]} 18. Nxf5 {[%clk 0:01:37]}  Rxf5 {[%clk 0:01:41]} 19. Rxf5 {[%clk 0:01:34]}  exf5 {[%clk 0:01:41]} 20. Nxd5 {[%clk 0:01:34]}  Qd6 {[%clk 0:01:40]} 21. Nxe7+ {[%clk 0:01:04]}  Qxe7 {[%clk 0:01:38]} 22. d5 {[%clk 0:01:04]}  Nd8 {[%clk 0:01:18]} 23. Bc4 {[%clk 0:00:20]}  Kh8 {[%clk 0:01:18]} 24. Bb3 {[%clk 0:00:20]}  Nf7 {[%clk 0:01:17]} 25. Qe1 {[%clk 0:00:17]}  Nd6 {[%clk 0:01:16]} 26. Qa5 {[%clk 0:00:16]}  b6 {[%clk 0:01:09]} 27. Qa6 {[%clk 0:00:13]}  g5 {[%clk 0:01:02]} 28. Rc6 {[%clk 0:00:12]}  f4 {[%clk 0:01:00]} 29. Qe2 {[%clk 0:00:11]}  e4 {[%clk 0:00:55]} 30. Qd2 {[%clk 0:00:11]}  Qe5 {[%clk 0:00:54]} 31. Rc7 {[%clk 0:00:07]}  Rf8 {[%clk 0:00:42]} 32. exf4 {[%clk 0:00:01]}  gxf4 {[%clk 0:00:20]} 33. Rxa7 {[%clk 0:00:02]}  f3 {[%clk 0:00:18]} 34. Qf2 {[%clk 0:00:02]}  e3 {[%clk 0:00:17]} 35. Qg3 {[%clk 0:00:02]}  f2+ {[%clk 0:00:16]} 36. Kf1 {[%clk 0:00:02]}  e2# {[%clk 0:00:17]} 0-1

[Event "December 12 Early 2023"]
[Site "https://www.chess.com"]
[Date "2023.12.12"]
[Round "10"]
[White "Aalto, Patrik"]
[Black "Tarasova, Viktoriya"]
[Result "1/2-1/2"]
[Board "109"]
[TimeControl "180+1"]
[WhiteFideId "510726"]
[BlackFideId "4175840"]
[WhiteElo "2441"]
[BlackElo "2318"]
[WhiteTeam "FIN"]
[BlackTeam "RUS"]
[WhiteClock "0:00:46"]
[BlackClock "0:01:01"]

1. c4 {[%clk 0:03:00]}  e5 {[%clk 0:02:58]} 2. Nc3 {[%clk 0:03:00]}  Nf6 {[%clk 0:02:58]} 3. g3 {[%clk 0:03:00]}  Bb4 {[%clk 0:02:58]} 4. Bg2 {[%clk 0:03:00]}  O-O {[%clk 0:02:58]} 5. Qb3 {[%clk 0:03:00]}  a5 {[%clk 0:02:52]} 6. a3 {[%clk 0:02:55]}  Bc5 {[%clk 0:02:52]} 7. e3 {[%clk 0:02:55]}  c6 {[%clk 0:02:46]} 8. Nge2 {[%clk 0:02:53]}  Re8 {[%clk 0:02:38]} 9. O-O {[%clk 0:02:44]}  e4 {[%clk 0:02:37]} 10. Qc2 {[%clk 0:02:39]}  d6 {[%clk 0:02:36]} 11. Nxe4 {[%clk 0:02:35]}  Nxe4 {[%clk 0:02:35]} 12. Bxe4 {[%clk 0:02:35]}  h6 {[%clk 0:02:35]} 13. d4 {[%clk 0:02:34]}  Ba7 {[%clk 0:02:34]} 14. b3 {[%clk 0:02:26]}  Nd7 {[%clk 0:02:33]} 15. Bb2 {[%clk 0:02:26]}  Nf6 {[%clk 0:02:34]} 16. Bg2 {[%clk 0:02:27]}  Bg4 {[%clk 0:02:31]} 17. h3 {[%clk 0:02:24]}  Bd7 {[%clk 0:02:29]} 18. Kh2 {[%clk 0:02:19]}  Qc8 {[%clk 0:02:29]} 19. c5 {[%clk 0:02:10]}  Bf5 {[%clk 0:02:28]} 20. Qc1 {[%clk 0:02:01]}  d5 {[%clk 0:02:20]} 21. Nf4 {[%clk 0:01:43]}  Be4 {[%clk 0:02:14]} 22. Qd1 {[%clk 0:01:40]}  g5 {[%clk 0:02:10]} 23. Nd3 {[%clk 0:01:39]}  Bxg2 {[%clk 0:02:06]} 24. Kxg2 {[%clk 0:01:40]}  Qe6 {[%clk 0:02:02]} 25. Ne5 {[%clk 0:01:39]}  Bb8 {[%clk 0:02:02]} 26. f4 {[%clk 0:01:39]}  gxf4 {[%clk 0:01:59]} 27. exf4 {[%clk 0:01:37]}  Ne4 {[%clk 0:01:58]} 28. Qe2 {[%clk 0:01:29]}  f5 {[%clk 0:01:55]} 29. Kh2 {[%clk 0:01:23]}  Kh7 {[%clk 0:01:55]} 30. g4 {[%clk 0:01:19]}  Rg8 {[%clk 0:01:53]} 31. Rg1 {[%clk 0:01:18]}  Bc7 {[%clk 0:01:51]} 32. Raf1 {[%clk 0:01:10]}  Raf8 {[%clk 0:01:50]} 33. Bc1 {[%clk 0:01:10]}  Bxe5 {[%clk 0:01:39]} 34. fxe5 {[%clk 0:01:07]}  fxg4 {[%clk 0:01:38]} 35. Rxg4 {[%clk 0:00:58]}  Rxf1 {[%clk 0:01:31]} 36. Qxf1 {[%clk 0:00:52]}  Rxg4 {[%clk 0:01:27]} 37. hxg4 {[%clk 0:00:53]}  Qxg4 {[%clk 0:01:21]} 38. Qf7+ {[%clk 0:00:53]}  Qg7 {[%clk 0:01:21]} 39. Qf5+ {[%clk 0:00:48]}  Qg6 {[%clk 0:01:14]} 40. Qd7+ {[%clk 0:00:46]}  Qg7 {[%clk 0:01:01]} 41. Qf5+ {[%clk 0:00:46]}  Qg6 {[%clk 0:01:01]} 42. Qd7+ {[%clk 0:00:46]}  Qg7 {[%clk 0:01:01]} 43. Qf5+ {[%clk 0:00:46]} 1/2-1/2

[Event "December 12 Early 2023"]
[Site "https://www.chess.com"]
[Date "2023.12.12"]
[Round "10"]
[White "Filipovic, Slobodan J"]
[Black "Tuleyeva-Aketayeva, Dana"]
[Result "0-1"]
[Board "110"]
[TimeControl "180+1"]
[WhiteFideId "939633"]
[BlackFideId "13701932"]
[WhiteElo "2418"]
[BlackElo "2321"]
[WhiteTeam "SRB"]
[BlackTeam "KAZ"]
[WhiteClock "0:00:00"]
[BlackClock "0:00:53"]

1. c4 {[%clk 0:03:00]}  Nf6 {[%clk 0:02:59]} 2. Nc3 {[%clk 0:03:00]}  d5 {[%clk 0:02:59]} 3. cxd5 {[%clk 0:03:00]}  Nxd5 {[%clk 0:02:59]} 4. e4 {[%clk 0:03:00]}  Nxc3 {[%clk 0:02:58]} 5. dxc3 {[%clk 0:03:01]}  Qxd1+ {[%clk 0:02:58]} 6. Kxd1 {[%clk 0:03:02]}  e5 {[%clk 0:02:53]} 7. Bc4 {[%clk 0:03:00]}  Bc5 {[%clk 0:02:51]} 8. Ke2 {[%clk 0:02:59]}  Ke7 {[%clk 0:02:49]} 9. b4 {[%clk 0:02:58]}  Bb6 {[%clk 0:02:47]} 10. Nf3 {[%clk 0:02:58]}  f6 {[%clk 0:02:47]} 11. a4 {[%clk 0:02:57]}  a5 {[%clk 0:02:45]} 12. Ba3 {[%clk 0:02:32]}  Ke8 {[%clk 0:02:34]} 13. b5 {[%clk 0:02:28]}  Nd7 {[%clk 0:02:30]} 14. Nd2 {[%clk 0:02:16]}  Bc5 {[%clk 0:02:26]} 15. Bb2 {[%clk 0:02:08]}  Nb6 {[%clk 0:02:26]} 16. Bd3 {[%clk 0:02:07]}  Be6 {[%clk 0:02:22]} 17. Rhc1 {[%clk 0:02:01]}  Ke7 {[%clk 0:02:18]} 18. c4 {[%clk 0:02:01]}  Nd7 {[%clk 0:01:55]} 19. Nb3 {[%clk 0:01:58]}  b6 {[%clk 0:01:55]} 20. Nxc5 {[%clk 0:01:43]}  Nxc5 {[%clk 0:01:54]} 21. Ba3 {[%clk 0:01:43]}  Kf7 {[%clk 0:01:43]} 22. Bxc5 {[%clk 0:01:42]}  bxc5 {[%clk 0:01:44]} 23. Rab1 {[%clk 0:01:34]}  Rab8 {[%clk 0:01:44]} 24. Ke3 {[%clk 0:01:32]}  Rb6 {[%clk 0:01:44]} 25. Be2 {[%clk 0:01:30]}  Rd8 {[%clk 0:01:44]} 26. Rd1 {[%clk 0:01:29]}  Rd4 {[%clk 0:01:42]} 27. Rxd4 {[%clk 0:01:23]}  exd4+ {[%clk 0:01:41]} 28. Kd3 {[%clk 0:01:21]}  f5 {[%clk 0:01:35]} 29. Bf3 {[%clk 0:01:20]}  g5 {[%clk 0:01:26]} 30. exf5 {[%clk 0:01:00]}  Bxf5+ {[%clk 0:01:26]} 31. Be4 {[%clk 0:01:01]}  Kf6 {[%clk 0:01:13]} 32. Bxf5 {[%clk 0:00:52]}  Kxf5 {[%clk 0:01:13]} 33. Re1 {[%clk 0:00:51]}  Re6 {[%clk 0:01:13]} 34. Rxe6 {[%clk 0:00:30]}  Kxe6 {[%clk 0:01:12]} 35. Ke4 {[%clk 0:00:30]}  h5 {[%clk 0:01:07]} 36. f3 {[%clk 0:00:26]}  Kf6 {[%clk 0:01:05]} 37. g3 {[%clk 0:00:24]}  Ke6 {[%clk 0:01:01]} 38. f4 {[%clk 0:00:18]}  gxf4 {[%clk 0:00:58]} 39. Kxf4 {[%clk 0:00:19]}  Kf6 {[%clk 0:00:57]} 40. h3 {[%clk 0:00:12]}  Kg6 {[%clk 0:00:56]} 41. Ke4 {[%clk 0:00:12]}  Kg5 {[%clk 0:00:55]} 42. Kd3 {[%clk 0:00:11]}  Kf5 {[%clk 0:00:53]} 43. Ke2 {[%clk 0:00:00]}  Ke4 {[%clk 0:00:53]} 0-1

[Event "December 12 Early 2023"]
[Site "https://www.chess.com"]
[Date "2023.12.12"]
[Round "10"]
[White "Arshiya Das"]
[Black "Begunov, Konstantin"]
[Result "0-1"]
[Board "111"]
[TimeControl "180+1"]
[WhiteFideId "25652150"]
[BlackFideId "4118510"]
[WhiteElo "2226"]
[BlackElo "2414"]
[WhiteTeam "IND"]
[BlackTeam "RUS"]
[WhiteClock "0:00:06"]
[BlackClock "0:00:13"]

1. e4 {[%clk 0:03:00]}  c5 {[%clk 0:02:59]} 2. Nf3 {[%clk 0:02:59]}  d6 {[%clk 0:03:00]} 3. d4 {[%clk 0:02:59]}  cxd4 {[%clk 0:03:00]} 4. Nxd4 {[%clk 0:03:00]}  Nf6 {[%clk 0:03:00]} 5. Nc3 {[%clk 0:03:00]}  a6 {[%clk 0:03:01]} 6. f4 {[%clk 0:02:59]}  e5 {[%clk 0:03:01]} 7. Nf3 {[%clk 0:02:59]}  Nbd7 {[%clk 0:03:01]} 8. a4 {[%clk 0:02:58]}  Be7 {[%clk 0:03:01]} 9. Bc4 {[%clk 0:02:59]}  O-O {[%clk 0:03:01]} 10. O-O {[%clk 0:02:59]}  Qc7 {[%clk 0:02:59]} 11. Bd3 {[%clk 0:02:55]}  Nc5 {[%clk 0:02:57]} 12. Kh1 {[%clk 0:02:55]}  Re8 {[%clk 0:02:48]} 13. Qe1 {[%clk 0:02:53]}  Bf8 {[%clk 0:02:45]} 14. fxe5 {[%clk 0:02:43]}  dxe5 {[%clk 0:02:43]} 15. Bg5 {[%clk 0:02:41]}  Nh5 {[%clk 0:02:34]} 16. Nd5 {[%clk 0:02:37]}  Qd6 {[%clk 0:02:16]} 17. Qh4 {[%clk 0:02:22]}  Nxd3 {[%clk 0:01:44]} 18. cxd3 {[%clk 0:02:18]}  Nf4 {[%clk 0:01:42]} 19. Nxf4 {[%clk 0:02:07]}  exf4 {[%clk 0:01:41]} 20. Ne1 {[%clk 0:02:03]}  Qd4 {[%clk 0:01:27]} 21. Rb1 {[%clk 0:01:44]}  Qxa4 {[%clk 0:00:59]} 22. Qxf4 {[%clk 0:01:37]}  Be6 {[%clk 0:00:56]} 23. Nf3 {[%clk 0:01:33]}  Bc5 {[%clk 0:00:36]} 24. Rfd1 {[%clk 0:01:06]}  Bd4 {[%clk 0:00:30]} 25. Nxd4 {[%clk 0:00:58]}  Qxd4 {[%clk 0:00:31]} 26. Bh4 {[%clk 0:00:52]}  Bb3 {[%clk 0:00:24]} 27. Bf2 {[%clk 0:00:52]}  Qe5 {[%clk 0:00:15]} 28. Qxe5 {[%clk 0:00:51]}  Rxe5 {[%clk 0:00:16]} 29. Rdc1 {[%clk 0:00:51]}  Rd8 {[%clk 0:00:14]} 30. Rc3 {[%clk 0:00:51]}  Be6 {[%clk 0:00:13]} 31. Bg3 {[%clk 0:00:49]}  Rb5 {[%clk 0:00:13]} 32. h3 {[%clk 0:00:44]}  h6 {[%clk 0:00:12]} 33. Kh2 {[%clk 0:00:44]}  Rd4 {[%clk 0:00:12]} 34. Bf2 {[%clk 0:00:43]}  Rdb4 {[%clk 0:00:12]} 35. Rc2 {[%clk 0:00:43]}  Ba2 {[%clk 0:00:11]} 36. Rbc1 {[%clk 0:00:40]}  Rxb2 {[%clk 0:00:12]} 37. Rxb2 {[%clk 0:00:38]}  Rxb2 {[%clk 0:00:13]} 38. Kg3 {[%clk 0:00:39]}  Be6 {[%clk 0:00:12]} 39. Kf3 {[%clk 0:00:36]}  a5 {[%clk 0:00:11]} 40. Ra1 {[%clk 0:00:35]}  b6 {[%clk 0:00:11]} 41. Be3 {[%clk 0:00:31]}  Bb3 {[%clk 0:00:10]} 42. g4 {[%clk 0:00:26]}  Bc2 {[%clk 0:00:10]} 43. Bd4 {[%clk 0:00:26]}  Rb3 {[%clk 0:00:10]} 44. Ke3 {[%clk 0:00:23]}  Bxd3 {[%clk 0:00:10]} 45. Kf4 {[%clk 0:00:22]}  Bc4 {[%clk 0:00:10]} 46. Rd1 {[%clk 0:00:20]}  a4 {[%clk 0:00:09]} 47. Ra1 {[%clk 0:00:18]}  a3 {[%clk 0:00:10]} 48. Rc1 {[%clk 0:00:18]}  b5 {[%clk 0:00:10]} 49. Ra1 {[%clk 0:00:18]}  Rd3 {[%clk 0:00:09]} 50. Ke5 {[%clk 0:00:17]}  a2 {[%clk 0:00:09]} 51. Bc5 {[%clk 0:00:15]}  Rd2 {[%clk 0:00:08]} 52. h4 {[%clk 0:00:15]}  Rg2 {[%clk 0:00:07]} 53. Kf4 {[%clk 0:00:14]}  Be6 {[%clk 0:00:07]} 54. g5 {[%clk 0:00:14]}  hxg5+ {[%clk 0:00:07]} 55. hxg5 {[%clk 0:00:15]}  Rg4+ {[%clk 0:00:07]} 56. Ke3 {[%clk 0:00:15]}  Rg3+ {[%clk 0:00:07]} 57. Kf4 {[%clk 0:00:15]}  Rb3 {[%clk 0:00:07]} 58. Bd4 {[%clk 0:00:13]}  Rb4 {[%clk 0:00:07]} 59. Bc5 {[%clk 0:00:13]}  Rb1 {[%clk 0:00:07]} 60. Rxa2 {[%clk 0:00:11]}  Bxa2 {[%clk 0:00:07]} 61. Ke3 {[%clk 0:00:10]}  Be6 {[%clk 0:00:08]} 62. Kd2 {[%clk 0:00:10]}  g6 {[%clk 0:00:08]} 63. Kc2 {[%clk 0:00:11]}  Rb3 {[%clk 0:00:09]} 64. Bd4 {[%clk 0:00:10]}  Rg3 {[%clk 0:00:10]} 65. Bf6 {[%clk 0:00:09]}  b4 {[%clk 0:00:11]} 66. Kb2 {[%clk 0:00:09]}  b3 {[%clk 0:00:12]} 67. Kb1 {[%clk 0:00:06]}  Rg2 {[%clk 0:00:13]} 68. Be5 {[%clk 0:00:06]}  Bc4 {[%clk 0:00:13]} 69. Bf6 {[%clk 0:00:06]}  Bd3+ {[%clk 0:00:13]} 70. Ka1 {[%clk 0:00:07]}  Bxe4 {[%clk 0:00:13]} 71. Be5 {[%clk 0:00:06]}  Ra2# {[%clk 0:00:13]} 0-1

[Event "December 12 Early 2023"]
[Site "https://www.chess.com"]
[Date "2023.12.12"]
[Round "10"]
[White "Subramanian, Anusha"]
[Black "Skaric, Djuro"]
[Result "0-1"]
[Board "113"]
[TimeControl "180+1"]
[WhiteFideId "477710"]
[BlackFideId "934569"]
[WhiteElo "2085"]
[BlackElo "2396"]
[WhiteTeam "ENG"]
[BlackTeam "SRB"]
[WhiteClock "0:00:02"]
[BlackClock "0:01:20"]

1. e4 {[%clk 0:03:00]}  d6 {[%clk 0:03:00]} 2. d4 {[%clk 0:03:00]}  g6 {[%clk 0:03:00]} 3. Be3 {[%clk 0:02:59]}  Bg7 {[%clk 0:02:57]} 4. c4 {[%clk 0:02:59]}  Nf6 {[%clk 0:02:58]} 5. Nc3 {[%clk 0:02:59]}  O-O {[%clk 0:02:58]} 6. Bd3 {[%clk 0:03:00]}  Nc6 {[%clk 0:02:59]} 7. Qd2 {[%clk 0:02:59]}  e5 {[%clk 0:02:59]} 8. d5 {[%clk 0:02:59]}  Ne7 {[%clk 0:03:00]} 9. f4 {[%clk 0:02:45]}  Ne8 {[%clk 0:03:00]} 10. O-O-O {[%clk 0:02:38]}  f5 {[%clk 0:03:01]} 11. exf5 {[%clk 0:02:36]}  Nxf5 {[%clk 0:03:00]} 12. fxe5 {[%clk 0:02:21]}  Nxe3 {[%clk 0:02:59]} 13. Qxe3 {[%clk 0:02:19]}  Bxe5 {[%clk 0:02:58]} 14. Nge2 {[%clk 0:02:11]}  Bg4 {[%clk 0:02:57]} 15. Kb1 {[%clk 0:02:07]}  b5 {[%clk 0:02:52]} 16. h3 {[%clk 0:01:51]}  bxc4 {[%clk 0:02:47]} 17. Bxc4 {[%clk 0:01:46]}  Bf5+ {[%clk 0:02:47]} 18. Bd3 {[%clk 0:01:45]}  Bxd3+ {[%clk 0:02:45]} 19. Rxd3 {[%clk 0:01:45]}  Nf6 {[%clk 0:02:42]} 20. Nd4 {[%clk 0:01:38]}  Qe8 {[%clk 0:02:36]} 21. Ne6 {[%clk 0:01:28]}  Rf7 {[%clk 0:02:36]} 22. Ng5 {[%clk 0:01:28]}  Re7 {[%clk 0:02:35]} 23. Ne6 {[%clk 0:01:23]}  Rb8 {[%clk 0:02:34]} 24. Re1 {[%clk 0:01:05]}  Nxd5 {[%clk 0:02:34]} 25. Nxd5 {[%clk 0:00:57]}  Rxe6 {[%clk 0:02:34]} 26. Rb3 {[%clk 0:00:40]}  Rxb3 {[%clk 0:02:05]} 27. axb3 {[%clk 0:00:41]}  Qf7 {[%clk 0:02:01]} 28. Rc1 {[%clk 0:00:21]}  c5 {[%clk 0:01:58]} 29. Qd3 {[%clk 0:00:15]}  Kg7 {[%clk 0:01:57]} 30. Qc4 {[%clk 0:00:10]}  Re8 {[%clk 0:01:54]} 31. g4 {[%clk 0:00:09]}  Qf2 {[%clk 0:01:46]} 32. Rc2 {[%clk 0:00:09]}  Qe1+ {[%clk 0:01:41]} 33. Rc1 {[%clk 0:00:09]}  Qf2 {[%clk 0:01:36]} 34. Rc2 {[%clk 0:00:10]}  Qg1+ {[%clk 0:01:37]} 35. Rc1 {[%clk 0:00:10]}  Qh2 {[%clk 0:01:37]} 36. Rc2 {[%clk 0:00:10]}  Qxh3 {[%clk 0:01:36]} 37. Qb5 {[%clk 0:00:10]}  Rf8 {[%clk 0:01:34]} 38. Qd7+ {[%clk 0:00:10]}  Rf7 {[%clk 0:01:34]} 39. Qe6 {[%clk 0:00:10]}  Qf1+ {[%clk 0:01:32]} 40. Rc1 {[%clk 0:00:09]}  Qd3+ {[%clk 0:01:32]} 41. Ka2 {[%clk 0:00:08]}  Qd2 {[%clk 0:01:24]} 42. Rb1 {[%clk 0:00:02]}  Qa5# {[%clk 0:01:20]} 0-1

[Event "December 12 Early 2023"]
[Site "https://www.chess.com"]
[Date "2023.12.12"]
[Round "10"]
[White "Klinova, Masha"]
[Black "La Villa Rivas, Marlon Javier"]
[Result "0-1"]
[Board "115"]
[TimeControl "180+1"]
[WhiteFideId "2802015"]
[BlackFideId "3519546"]
[WhiteElo "2512"]
[BlackElo "2346"]
[WhiteTeam "ISR"]
[BlackTeam "CUB"]
[WhiteClock "0:00:48"]
[BlackClock "0:01:30"]

1. e4 {[%clk 0:02:57]}  e6 {[%clk 0:03:00]} 2. Nf3 {[%clk 0:02:50]}  d5 {[%clk 0:02:59]} 3. Nc3 {[%clk 0:02:51]}  dxe4 {[%clk 0:02:57]} 4. Nxe4 {[%clk 0:02:50]}  Nf6 {[%clk 0:02:57]} 5. Nxf6+ {[%clk 0:02:50]}  gxf6 {[%clk 0:02:57]} 6. d4 {[%clk 0:02:51]}  c5 {[%clk 0:02:56]} 7. Be3 {[%clk 0:02:50]}  Nc6 {[%clk 0:02:54]} 8. dxc5 {[%clk 0:02:49]}  Qa5+ {[%clk 0:02:53]} 9. Qd2 {[%clk 0:02:48]}  Qxd2+ {[%clk 0:02:48]} 10. Nxd2 {[%clk 0:02:47]}  f5 {[%clk 0:02:48]} 11. O-O-O {[%clk 0:02:44]}  e5 {[%clk 0:02:48]} 12. Nb3 {[%clk 0:02:41]}  f4 {[%clk 0:02:44]} 13. Bd2 {[%clk 0:02:26]}  Be6 {[%clk 0:02:43]} 14. Bb5 {[%clk 0:02:07]}  O-O-O {[%clk 0:02:42]} 15. Bc3 {[%clk 0:02:05]}  f6 {[%clk 0:02:41]} 16. Bxc6 {[%clk 0:02:00]}  bxc6 {[%clk 0:02:40]} 17. Rxd8+ {[%clk 0:02:00]}  Kxd8 {[%clk 0:02:41]} 18. Na5 {[%clk 0:01:55]}  Kc7 {[%clk 0:02:40]} 19. b4 {[%clk 0:01:52]}  Bxa2 {[%clk 0:02:38]} 20. Kb2 {[%clk 0:01:52]}  Bd5 {[%clk 0:02:37]} 21. f3 {[%clk 0:01:52]}  Rg8 {[%clk 0:02:36]} 22. g3 {[%clk 0:01:40]}  Bxf3 {[%clk 0:02:34]} 23. Rf1 {[%clk 0:01:40]}  Be2 {[%clk 0:02:31]} 24. Rf2 {[%clk 0:01:40]}  f3 {[%clk 0:02:32]} 25. Nb3 {[%clk 0:01:38]}  Bh6 {[%clk 0:02:30]} 26. Bd2 {[%clk 0:01:37]}  Bg7 {[%clk 0:01:36]} 27. Be3 {[%clk 0:01:06]}  f5 {[%clk 0:01:34]} 28. Nd4 {[%clk 0:01:00]}  exd4 {[%clk 0:01:33]} 29. Bf4+ {[%clk 0:01:00]}  Kb7 {[%clk 0:01:32]} 30. Kc1 {[%clk 0:00:59]}  Re8 {[%clk 0:01:30]} 31. Kd2 {[%clk 0:00:48]}  Ka6 {[%clk 0:01:30]} 0-1

[Event "December 12 Early 2023"]
[Site "https://www.chess.com"]
[Date "2023.12.12"]
[Round "10"]
[White "Omariev, Maksim"]
[Black "Georg, Heinz"]
[Result "1-0"]
[Board "116"]
[TimeControl "180+1"]
[WhiteFideId "4193423"]
[BlackFideId "4607295"]
[WhiteElo "2489"]
[BlackElo "2340"]
[WhiteTeam "RUS"]
[BlackTeam "GER"]
[WhiteClock "0:00:04"]
[BlackClock "0:00:00"]

1. g4 {[%clk 0:02:52]}  d5 {[%clk 0:02:59]} 2. Bg2 {[%clk 0:02:52]}  e5 {[%clk 0:02:58]} 3. d4 {[%clk 0:02:50]}  e4 {[%clk 0:02:57]} 4. c4 {[%clk 0:02:50]}  c6 {[%clk 0:02:56]} 5. Nc3 {[%clk 0:02:49]}  h5 {[%clk 0:02:33]} 6. g5 {[%clk 0:02:43]}  f5 {[%clk 0:02:33]} 7. Qb3 {[%clk 0:02:26]}  Ne7 {[%clk 0:02:22]} 8. Nh3 {[%clk 0:02:19]}  dxc4 {[%clk 0:02:17]} 9. Qxc4 {[%clk 0:02:18]}  Nd5 {[%clk 0:02:17]} 10. Nf4 {[%clk 0:02:00]}  Nb6 {[%clk 0:02:12]} 11. Qb3 {[%clk 0:01:45]}  Qxg5 {[%clk 0:02:01]} 12. Rg1 {[%clk 0:01:32]}  Qf6 {[%clk 0:01:57]} 13. Bh1 {[%clk 0:00:49]}  g5 {[%clk 0:01:52]} 14. Nh3 {[%clk 0:00:49]}  g4 {[%clk 0:01:52]} 15. Nf4 {[%clk 0:00:22]}  Bd6 {[%clk 0:01:39]} 16. Be3 {[%clk 0:00:19]}  Bxf4 {[%clk 0:01:20]} 17. Bxf4 {[%clk 0:00:19]}  Be6 {[%clk 0:01:19]} 18. Qb4 {[%clk 0:00:05]}  Na6 {[%clk 0:01:13]} 19. Qa5 {[%clk 0:00:03]}  Nc4 {[%clk 0:01:09]} 20. Qa4 {[%clk 0:00:02]}  O-O-O {[%clk 0:00:59]} 21. O-O-O {[%clk 0:00:01]}  Rxd4 {[%clk 0:00:49]} 22. e3 {[%clk 0:00:01]}  Rd7 {[%clk 0:00:40]} 23. Bg2 {[%clk 0:00:01]}  Rhd8 {[%clk 0:00:38]} 24. Rxd7 {[%clk 0:00:02]}  Rxd7 {[%clk 0:00:38]} 25. Bf1 {[%clk 0:00:03]}  Nxb2 {[%clk 0:00:26]} 26. Qc2 {[%clk 0:00:03]}  Nd3+ {[%clk 0:00:25]} 27. Bxd3 {[%clk 0:00:03]}  exd3 {[%clk 0:00:25]} 28. Qd2 {[%clk 0:00:03]}  Bc4 {[%clk 0:00:17]} 29. Kb1 {[%clk 0:00:03]}  Qe6 {[%clk 0:00:17]} 30. Rc1 {[%clk 0:00:04]}  b5 {[%clk 0:00:16]} 31. Nd1 {[%clk 0:00:04]}  Qe7 {[%clk 0:00:11]} 32. Ka1 {[%clk 0:00:03]}  Qb4 {[%clk 0:00:11]} 33. Qb2 {[%clk 0:00:02]}  Qxb2+ {[%clk 0:00:10]} 34. Nxb2 {[%clk 0:00:03]}  d2 {[%clk 0:00:10]} 35. Rd1 {[%clk 0:00:04]}  Nb4 {[%clk 0:00:08]} 36. Nxc4 {[%clk 0:00:03]}  bxc4 {[%clk 0:00:00]} 37. Be5 {[%clk 0:00:04]} 1-0